[Event "2026 European Womens Championship"]
[Site "Batumi, GE"]
[Date "2026.06.01"]
[Round "7"]
[White "Tsirulnik, Maritsa"]
[Black "Kalayci, Nino"]
[Result "1-0"]
[Board "119"]
[TimeControl "5400+30"]
[WhiteFideId "14118688"]
[BlackFideId "13603221"]
[WhiteElo "2028"]
[BlackElo "1755"]
[WhiteTitle "WFM"]
[BlackTitle "WCM"]
[WhiteClock "0:33:27"]
[BlackClock "0:00:35"]
[Variant "Standard"]

1. c4 {[%clk 1:30:54]}  e5 {[%clk 1:29:26]} 2. d3 {[%clk 1:31:05]}  Nc6 {[%clk 1:29:12]} 3. Nf3 {[%clk 1:31:04]}  Nf6 {[%clk 1:28:55]}
4. a3 {[%clk 1:24:04]}  a5 {[%clk 1:22:45]} 5. Nc3 {[%clk 1:18:46]}  d5 {[%clk 1:12:53]} 6. cxd5 {[%clk 1:19:09]}  Nxd5 {[%clk 1:13:18]}
7. e4 {[%clk 1:18:40]}  Nf6 {[%clk 1:01:35]} 8. Be2 {[%clk 1:18:24]}  h6 {[%clk 0:50:17]} 9. h3 {[%clk 1:17:25]}  Be6 {[%clk 0:38:06]}
10. Be3 {[%clk 1:16:04]}  Be7 {[%clk 0:37:35]} 11. O-O {[%clk 1:14:09]}  O-O {[%clk 0:37:16]} 12. Rc1 {[%clk 1:08:57]}  Nd7 {[%clk 0:29:57]}
13. Nb5 {[%clk 1:02:10]}  a4 {[%clk 0:14:08]} 14. d4 {[%clk 1:00:54]}  Bb3 {[%clk 0:11:11]} 15. Qe1 {[%clk 0:59:50]}  exd4 {[%clk 0:04:41]}
16. Nfxd4 {[%clk 0:59:20]}  Nxd4 {[%clk 0:05:01]} 17. Nxd4 {[%clk 0:59:41]}  Nc5 {[%clk 0:03:32]} 18. f3 {[%clk 0:57:03]}  Be6 {[%clk 0:02:37]}
19. Qg3 {[%clk 0:47:06]}  Bh4 {[%clk 0:02:07]} 20. Qh2 {[%clk 0:47:30]}  Qd6 {[%clk 0:01:15]} 21. e5 {[%clk 0:46:20]}  Qd5 {[%clk 0:00:39]}
22. Bc4 {[%clk 0:36:15]}  Qd8 {[%clk 0:00:59]} 23. Nxe6 {[%clk 0:34:50]}  Nxe6 {[%clk 0:01:21]} 24. Rcd1 {[%clk 0:33:44]}  Qc8 {[%clk 0:01:01]}
25. f4 {[%clk 0:34:04]}  b5 {[%clk 0:00:43]} 26. Ba2 {[%clk 0:33:06]}  f5 {[%clk 0:00:44]} 27. exf6 {[%clk 0:32:50]}  Bxf6 {[%clk 0:00:33]}
28. f5 {[%clk 0:33:14]}  Kh8 {[%clk 0:00:35]} 29. Bxe6 {[%clk 0:33:27]} 1-0

[Event "2026 European Womens Championship"]
[Site "Batumi, GE"]
[Date "2026.06.01"]
[Round "7"]
[White "Xing, Lida"]
[Black "Muradyan, Anahit"]
[Result "0-1"]
[Board "120"]
[TimeControl "5400+30"]
[WhiteFideId "13326171"]
[BlackFideId "13314807"]
[WhiteElo "1598"]
[BlackElo "1977"]
[WhiteClock "0:15:23"]
[BlackClock "0:59:32"]
[Variant "Standard"]

1. e4 {[%clk 1:30:57]}  c5 {[%clk 1:30:55]} 2. Nf3 {[%clk 1:31:22]}  e6 {[%clk 1:31:23]} 3. d4 {[%clk 1:31:46]}  cxd4 {[%clk 1:31:48]}
4. Nxd4 {[%clk 1:32:05]}  a6 {[%clk 1:32:09]} 5. c4 {[%clk 1:32:11]}  Qc7 {[%clk 1:32:34]} 6. Nc3 {[%clk 1:32:30]}  Bc5 {[%clk 1:32:59]}
7. Be3 {[%clk 1:32:40]}  Nf6 {[%clk 1:33:01]} 8. Be2 {[%clk 1:32:39]}  d6 {[%clk 1:33:20]} 9. O-O {[%clk 1:32:58]}  Bd7 {[%clk 1:33:11]}
10. Nc2 {[%clk 1:32:26]}  Bxe3 {[%clk 1:32:02]} 11. Nxe3 {[%clk 1:32:28]}  Nc6 {[%clk 1:31:29]} 12. Kh1 {[%clk 1:26:12]}  O-O {[%clk 1:29:58]}
13. f4 {[%clk 1:26:31]}  Qb6 {[%clk 1:30:00]} 14. Qd2 {[%clk 1:25:47]}  Rfd8 {[%clk 1:24:37]} 15. Rad1 {[%clk 1:10:58]}  Be8 {[%clk 1:23:55]}
16. Qc1 {[%clk 1:11:01]}  Nd4 {[%clk 1:22:42]} 17. Bd3 {[%clk 0:59:46]}  Rac8 {[%clk 1:17:04]} 18. Bb1 {[%clk 0:58:30]}  Nc6 {[%clk 1:10:59]}
19. f5 {[%clk 0:55:22]}  Ne5 {[%clk 1:08:42]} 20. fxe6 {[%clk 0:55:42]}  fxe6 {[%clk 1:07:56]} 21. Rxf6 {[%clk 0:42:12]}  gxf6 {[%clk 1:06:44]}
22. Ned5 {[%clk 0:42:18]}  exd5 {[%clk 1:07:03]} 23. Nxd5 {[%clk 0:42:44]}  Qf2 {[%clk 1:06:13]} 24. Rf1 {[%clk 0:25:57]}  Qh4 {[%clk 1:05:52]}
25. g3 {[%clk 0:23:06]}  Qh3 {[%clk 1:03:22]} 26. Rf4 {[%clk 0:17:16]}  Rxc4 {[%clk 1:01:16]} 27. Qd1 {[%clk 0:15:23]}  Bg6 {[%clk 0:59:32]} 0-1

[Event "2026 European Womens Championship"]
[Site "Batumi, GE"]
[Date "2026.06.01"]
[Round "7"]
[White "Vakhania, Aleksandra"]
[Black "Chkhartishvili, Lika"]
[Result "0-1"]
[Board "121"]
[TimeControl "5400+30"]
[WhiteFideId "13602560"]
[BlackFideId "13635166"]
[WhiteElo "2079"]
[BlackElo "1822"]
[WhiteTitle "WIM"]
[WhiteClock "0:02:49"]
[BlackClock "0:22:17"]
[Variant "Standard"]

1. d4 {[%clk 1:30:23]}  d5 {[%clk 1:30:56]} 2. Nf3 {[%clk 1:30:26]}  Nf6 {[%clk 1:31:07]} 3. Bf4 {[%clk 1:29:07]}  c5 {[%clk 1:30:23]}
4. e3 {[%clk 1:29:01]}  cxd4 {[%clk 1:26:59]} 5. exd4 {[%clk 1:29:23]}  g6 {[%clk 1:27:13]} 6. Bd3 {[%clk 1:29:08]}  Bg7 {[%clk 1:27:26]}
7. Nbd2 {[%clk 1:29:26]}  O-O {[%clk 1:27:29]} 8. h3 {[%clk 1:29:03]}  Nc6 {[%clk 1:26:13]} 9. c3 {[%clk 1:29:22]}  Re8 {[%clk 1:19:26]}
10. O-O {[%clk 1:27:16]}  Nd7 {[%clk 1:18:01]} 11. Qb3 {[%clk 1:23:17]}  e5 {[%clk 1:16:13]} 12. Bg5 {[%clk 1:20:41]}  Qa5 {[%clk 1:13:09]}
13. dxe5 {[%clk 1:16:30]}  Ndxe5 {[%clk 1:11:03]} 14. Nxe5 {[%clk 1:15:23]}  Nxe5 {[%clk 1:08:42]} 15. Bb5 {[%clk 1:07:19]}  Nc6 {[%clk 1:02:33]}
16. Qxd5 {[%clk 0:55:34]}  Re5 {[%clk 0:59:52]} 17. Qf3 {[%clk 0:32:53]}  Qxb5 {[%clk 0:58:41]} 18. Bf4 {[%clk 0:33:14]}  Re8 {[%clk 0:57:23]}
19. Ne4 {[%clk 0:33:22]}  Ne5 {[%clk 0:52:38]} 20. Qg3 {[%clk 0:33:10]}  Qc6 {[%clk 0:50:06]} 21. Rfe1 {[%clk 0:31:26]}  Bf5 {[%clk 0:49:12]}
22. Ng5 {[%clk 0:31:51]}  Nd3 {[%clk 0:48:11]} 23. Rxe8+ {[%clk 0:30:40]}  Rxe8 {[%clk 0:48:34]} 24. Be3 {[%clk 0:31:03]}  Nxb2 {[%clk 0:42:08]}
25. Qh4 {[%clk 0:28:24]}  h6 {[%clk 0:40:39]} 26. Nf3 {[%clk 0:28:48]}  g5 {[%clk 0:39:14]} 27. Qb4 {[%clk 0:26:57]}  Bxc3 {[%clk 0:35:40]}
28. Qa3 {[%clk 0:24:00]}  Nd3 {[%clk 0:31:13]} 29. Rd1 {[%clk 0:21:49]}  Be4 {[%clk 0:29:17]} 30. Nh2 {[%clk 0:16:59]}  b5 {[%clk 0:27:05]}
31. f3 {[%clk 0:12:17]}  Bf5 {[%clk 0:25:56]} 32. Bxa7 {[%clk 0:08:35]}  b4 {[%clk 0:25:34]} 33. Qa5 {[%clk 0:03:14]}  Qe6 {[%clk 0:24:22]}
34. Ng4 {[%clk 0:03:05]}  Bxg4 {[%clk 0:24:20]} 35. fxg4 {[%clk 0:02:28]}  Qe2 {[%clk 0:24:15]} 36. Qa4 {[%clk 0:02:49]}  Nb2 {[%clk 0:22:17]} 0-1

[Event "2026 European Womens Championship"]
[Site "Batumi, GE"]
[Date "2026.06.01"]
[Round "7"]
[White "Subramanian, Anusha"]
[Black "Manukyan, Tamara"]
[Result "1-0"]
[Board "122"]
[TimeControl "5400+30"]
[WhiteFideId "477710"]
[BlackFideId "13321307"]
[WhiteElo "2068"]
[BlackElo "1707"]
[WhiteTitle "WFM"]
[WhiteClock "0:00:45"]
[BlackClock "0:17:26"]
[Variant "Standard"]

1. e4 {[%clk 1:30:57]}  d5 {[%clk 1:30:55]} 2. exd5 {[%clk 1:31:20]}  Nf6 {[%clk 1:31:23]} 3. d4 {[%clk 1:31:20]}  Nxd5 {[%clk 1:31:47]}
4. c4 {[%clk 1:28:46]}  Nf6 {[%clk 1:32:13]} 5. Nf3 {[%clk 1:28:37]}  c5 {[%clk 1:32:30]} 6. d5 {[%clk 1:27:09]}  e6 {[%clk 1:32:54]}
7. Nc3 {[%clk 1:26:15]}  Be7 {[%clk 1:30:10]} 8. Bf4 {[%clk 1:22:49]}  Bd6 {[%clk 1:28:39]} 9. Bg5 {[%clk 1:20:42]}  h6 {[%clk 1:25:47]}
10. Bh4 {[%clk 1:10:02]}  O-O {[%clk 1:23:13]} 11. Be2 {[%clk 1:04:55]}  exd5 {[%clk 1:21:02]} 12. cxd5 {[%clk 1:01:25]}  Bf5 {[%clk 1:20:49]}
13. O-O {[%clk 1:00:54]}  Nbd7 {[%clk 1:20:55]} 14. Bd3 {[%clk 0:56:17]}  Bg4 {[%clk 1:19:57]} 15. Ne4 {[%clk 0:53:06]}  Bf4 {[%clk 1:09:29]}
16. h3 {[%clk 0:29:59]}  Bh5 {[%clk 1:09:07]} 17. g4 {[%clk 0:25:54]}  Bg6 {[%clk 1:08:53]} 18. Qa4 {[%clk 0:20:55]}  Bxe4 {[%clk 1:00:46]}
19. Bxe4 {[%clk 0:21:08]}  b5 {[%clk 0:56:09]} 20. Qc2 {[%clk 0:17:26]}  Qb6 {[%clk 0:48:35]} 21. Bf5 {[%clk 0:15:45]}  c4 {[%clk 0:46:39]}
22. Bxd7 {[%clk 0:10:45]}  Nxd7 {[%clk 0:47:04]} 23. Qf5 {[%clk 0:10:51]}  Qd6 {[%clk 0:45:39]} 24. Be7 {[%clk 0:06:25]}  Qxe7 {[%clk 0:45:41]}
25. Qxf4 {[%clk 0:06:50]}  Qc5 {[%clk 0:45:17]} 26. Rad1 {[%clk 0:05:51]}  Nb6 {[%clk 0:45:19]} 27. d6 {[%clk 0:05:25]}  Rad8 {[%clk 0:44:31]}
28. Rfe1 {[%clk 0:05:00]}  Nd5 {[%clk 0:43:56]} 29. Qe5 {[%clk 0:02:49]}  Rxd6 {[%clk 0:36:30]} 30. Nd4 {[%clk 0:02:21]}  g6 {[%clk 0:29:07]}
31. b4 {[%clk 0:00:46]}  Qb6 {[%clk 0:28:35]} 32. Nf5 {[%clk 0:00:32]}  gxf5 {[%clk 0:28:20]} 33. Rxd5 {[%clk 0:00:54]}  Re6 {[%clk 0:25:45]}
34. Qc3 {[%clk 0:01:05]}  fxg4 {[%clk 0:24:50]} 35. hxg4 {[%clk 0:01:00]}  Rxe1+ {[%clk 0:24:12]} 36. Qxe1 {[%clk 0:01:29]}  Qc6 {[%clk 0:22:07]}
37. Qe4 {[%clk 0:00:49]}  Rc8 {[%clk 0:16:53]} 38. Rd8+ {[%clk 0:01:00]}  Kg7 {[%clk 0:17:14]} 39. Qd4+ {[%clk 0:00:48]}  Kh7 {[%clk 0:16:34]}
40. Qh8+ {[%clk 0:01:03]}  Kg6 {[%clk 0:17:00]} 41. Rxc8 {[%clk 0:01:04]}  Qe4 {[%clk 0:17:26]} 42. Rg8# {[%clk 0:00:45]} 1-0

[Event "2026 European Womens Championship"]
[Site "Batumi, GE"]
[Date "2026.06.01"]
[Round "7"]
[White "Saraci, Rinesa"]
[Black "Krkyasharyan, Sona"]
[Result "0-1"]
[Board "123"]
[TimeControl "5400+30"]
[WhiteFideId "4701976"]
[BlackFideId "13316729"]
[WhiteElo "1754"]
[BlackElo "2063"]
[WhiteTitle "WCM"]
[BlackTitle "WFM"]
[WhiteClock "0:30:10"]
[BlackClock "1:09:56"]
[Variant "Standard"]

1. e4 {[%clk 1:29:43]}  c5 {[%clk 1:30:55]} 2. Nf3 {[%clk 1:30:00]}  d6 {[%clk 1:31:20]} 3. Bb5+ {[%clk 1:29:54]}  Nd7 {[%clk 1:31:43]}
4. d4 {[%clk 1:28:51]}  cxd4 {[%clk 1:31:55]} 5. Qxd4 {[%clk 1:28:15]}  a6 {[%clk 1:31:58]} 6. Bxd7+ {[%clk 1:28:06]}  Bxd7 {[%clk 1:32:22]}
7. Nc3 {[%clk 1:26:36]}  e5 {[%clk 1:32:38]} 8. Qd3 {[%clk 1:25:52]}  Rc8 {[%clk 1:32:15]} 9. a4 {[%clk 1:20:58]}  Qc7 {[%clk 1:27:48]}
10. O-O {[%clk 1:16:28]}  h6 {[%clk 1:27:21]} 11. Be3 {[%clk 1:13:19]}  Nf6 {[%clk 1:27:37]} 12. a5 {[%clk 1:02:14]}  Be7 {[%clk 1:26:52]}
13. Rfe1 {[%clk 1:00:19]}  O-O {[%clk 1:26:02]} 14. Bb6 {[%clk 0:55:04]}  Qc6 {[%clk 1:24:34]} 15. Rac1 {[%clk 0:47:30]}  Be6 {[%clk 1:23:26]}
16. h3 {[%clk 0:40:33]}  Bd8 {[%clk 1:18:31]} 17. Bxd8 {[%clk 0:37:05]}  Rfxd8 {[%clk 1:18:18]} 18. Red1 {[%clk 0:35:09]}  Qc7 {[%clk 1:15:58]}
19. Ra1 {[%clk 0:30:40]}  d5 {[%clk 1:15:12]} 20. exd5 {[%clk 0:28:31]}  Nxd5 {[%clk 1:15:36]} 21. Qe4 {[%clk 0:26:27]}  Nxc3 {[%clk 1:14:49]}
22. Rxd8+ {[%clk 0:24:49]}  Rxd8 {[%clk 1:14:52]} 23. bxc3 {[%clk 0:24:57]}  Qxc3 {[%clk 1:13:48]} 24. Ra4 {[%clk 0:19:40]}  Qc5 {[%clk 1:05:40]}
25. Ra1 {[%clk 0:16:39]}  Qc3 {[%clk 0:50:43]} 26. Rb1 {[%clk 0:09:13]}  Bd5 {[%clk 0:47:34]} 27. Qf5 {[%clk 0:06:07]}  Re8 {[%clk 0:41:14]}
28. Qd7 {[%clk 0:03:36]}  Bc6 {[%clk 0:40:18]} 29. Qd2 {[%clk 0:03:58]}  Qxd2 {[%clk 0:40:02]} 30. Nxd2 {[%clk 0:04:23]}  f6 {[%clk 0:39:55]}
31. Nc4 {[%clk 0:02:53]}  Rd8 {[%clk 0:39:52]} 32. Ne3 {[%clk 0:01:13]}  Kf7 {[%clk 0:39:14]} 33. g3 {[%clk 0:00:41]}  Ke6 {[%clk 0:39:07]}
34. h4 {[%clk 0:00:33]}  g6 {[%clk 0:39:13]} 35. Kf1 {[%clk 0:00:32]}  f5 {[%clk 0:39:01]} 36. Rb4 {[%clk 0:00:37]}  Rd4 {[%clk 0:38:30]}
37. Rxd4 {[%clk 0:00:32]}  exd4 {[%clk 0:38:53]} 38. Ng2 {[%clk 0:00:36]}  Bxg2+ {[%clk 0:38:42]} 39. Kxg2 {[%clk 0:01:01]}  Kd5 {[%clk 0:39:06]}
40. Kf3 {[%clk 0:00:59]}  Kc4 {[%clk 0:38:09]} 41. Ke2 {[%clk 0:29:28]}  Kc3 {[%clk 1:08:15]} 42. Kd1 {[%clk 0:29:09]}  Kb4 {[%clk 1:08:36]}
43. Kd2 {[%clk 0:29:26]}  Kxa5 {[%clk 1:09:01]} 44. Kd3 {[%clk 0:29:51]}  Kb4 {[%clk 1:09:28]} 45. Kxd4 {[%clk 0:30:10]}  a5 {[%clk 1:09:56]} 0-1

[Event "2026 European Womens Championship"]
[Site "Batumi, GE"]
[Date "2026.06.01"]
[Round "7"]
[White "Ediberidze, Alexandra"]
[Black "Esadze, Tamari"]
[Result "0-1"]
[Board "124"]
[TimeControl "5400+30"]
[WhiteFideId "13636685"]
[BlackFideId "13611186"]
[WhiteElo "1638"]
[BlackElo "1974"]
[WhiteClock "0:01:32"]
[BlackClock "0:15:28"]
[Variant "Standard"]

1. e4 {[%clk 1:26:24]}  c5 {[%clk 1:30:56]} 2. Nf3 {[%clk 1:26:51]}  d6 {[%clk 1:31:21]} 3. d4 {[%clk 1:27:17]}  cxd4 {[%clk 1:31:48]}
4. Nxd4 {[%clk 1:27:40]}  Nf6 {[%clk 1:32:16]} 5. Nc3 {[%clk 1:28:00]}  a6 {[%clk 1:32:43]} 6. Bc4 {[%clk 1:28:22]}  e6 {[%clk 1:32:54]}
7. Be3 {[%clk 1:27:03]}  Be7 {[%clk 1:32:55]} 8. f3 {[%clk 1:26:20]}  Qc7 {[%clk 1:32:44]} 9. Bb3 {[%clk 1:26:34]}  O-O {[%clk 1:31:20]}
10. O-O {[%clk 1:24:06]}  Nc6 {[%clk 1:28:56]} 11. Qd2 {[%clk 1:22:06]}  Ne5 {[%clk 1:27:25]} 12. Kh1 {[%clk 1:20:15]}  b5 {[%clk 1:24:36]}
13. h4 {[%clk 1:05:42]}  Ng6 {[%clk 1:10:11]} 14. Bg5 {[%clk 0:50:42]}  Nh5 {[%clk 1:05:09]} 15. Nde2 {[%clk 0:34:04]}  h6 {[%clk 0:56:44]}
16. Bxe7 {[%clk 0:33:26]}  Qxe7 {[%clk 0:57:10]} 17. g3 {[%clk 0:33:40]}  Bb7 {[%clk 0:51:54]} 18. Kg2 {[%clk 0:23:25]}  Kh8 {[%clk 0:40:45]}
19. Rae1 {[%clk 0:13:33]}  Rac8 {[%clk 0:37:04]} 20. Nd1 {[%clk 0:12:15]}  Rc5 {[%clk 0:32:15]} 21. Ne3 {[%clk 0:07:55]}  Nxh4+ {[%clk 0:19:38]}
22. gxh4 {[%clk 0:07:51]}  Qxh4 {[%clk 0:20:05]} 23. Ng4 {[%clk 0:07:46]}  Bxe4 {[%clk 0:18:03]} 24. Qxd6 {[%clk 0:04:09]}  Qxg4+ {[%clk 0:15:28]}
25. Kh1 {[%clk 0:01:32]} 0-1

[Event "2026 European Womens Championship"]
[Site "Batumi, GE"]
[Date "2026.06.01"]
[Round "7"]
[White "Avelino, Camila Biscaya"]
[Black "Danielyan, Lilia"]
[Result "1/2-1/2"]
[Board "125"]
[TimeControl "5400+30"]
[WhiteFideId "1938975"]
[BlackFideId "13319841"]
[WhiteElo "1937"]
[BlackElo "1728"]
[WhiteTitle "WFM"]
[WhiteClock "0:01:51"]
[BlackClock "0:01:02"]
[Variant "Standard"]

1. e4 {[%clk 1:30:21]}  c5 {[%clk 1:30:47]} 2. Nf3 {[%clk 1:30:44]}  Nc6 {[%clk 1:31:05]} 3. Nc3 {[%clk 1:31:03]}  Nf6 {[%clk 1:28:22]}
4. Bb5 {[%clk 1:31:22]}  Nd4 {[%clk 1:25:00]} 5. e5 {[%clk 1:31:33]}  Nxb5 {[%clk 1:23:37]} 6. Nxb5 {[%clk 1:31:54]}  Nd5 {[%clk 1:23:13]}
7. O-O {[%clk 1:29:59]}  e6 {[%clk 1:13:21]} 8. c4 {[%clk 1:07:28]}  Nb4 {[%clk 1:02:45]} 9. d4 {[%clk 1:05:36]}  cxd4 {[%clk 0:55:45]}
10. Nfxd4 {[%clk 1:05:55]}  a6 {[%clk 0:42:11]} 11. Nd6+ {[%clk 1:01:26]}  Bxd6 {[%clk 0:40:22]} 12. exd6 {[%clk 1:01:51]}  O-O {[%clk 0:38:29]}
13. Be3 {[%clk 0:51:51]}  Qf6 {[%clk 0:29:59]} 14. a3 {[%clk 0:49:21]}  Nc6 {[%clk 0:29:33]} 15. Nxc6 {[%clk 0:49:32]}  bxc6 {[%clk 0:29:42]}
16. Qd2 {[%clk 0:44:58]}  a5 {[%clk 0:28:12]} 17. a4 {[%clk 0:40:26]}  Ba6 {[%clk 0:26:51]} 18. b3 {[%clk 0:31:07]}  Rfb8 {[%clk 0:26:17]}
19. Rab1 {[%clk 0:27:47]}  Qf5 {[%clk 0:25:25]} 20. Rb2 {[%clk 0:27:58]}  Rb4 {[%clk 0:23:22]} 21. Qd4 {[%clk 0:17:24]}  Rab8 {[%clk 0:20:31]}
22. Bd2 {[%clk 0:11:22]}  R4b7 {[%clk 0:15:07]} 23. Re1 {[%clk 0:09:36]}  f6 {[%clk 0:11:51]} 24. Re3 {[%clk 0:07:14]}  c5 {[%clk 0:04:31]}
25. Qh4 {[%clk 0:02:45]}  g5 {[%clk 0:02:56]} 26. Qg3 {[%clk 0:00:37]}  Bxc4 {[%clk 0:02:40]} 27. Bxa5 {[%clk 0:00:46]}  Bxb3 {[%clk 0:02:05]}
28. h4 {[%clk 0:00:34]}  Bxa4 {[%clk 0:01:39]} 29. Rxb7 {[%clk 0:00:53]}  Rxb7 {[%clk 0:01:59]} 30. hxg5 {[%clk 0:00:47]}  Qxg5 {[%clk 0:01:07]}
31. Qh3 {[%clk 0:00:42]}  Kh8 {[%clk 0:00:53]} 32. Bc3 {[%clk 0:00:34]}  Rb1+ {[%clk 0:00:55]} 33. Kh2 {[%clk 0:00:57]}  Qf4+ {[%clk 0:00:49]}
34. Rg3 {[%clk 0:00:52]}  e5 {[%clk 0:00:50]} 35. Qh5 {[%clk 0:00:59]}  Rb8 {[%clk 0:00:54]} 36. Qf7 {[%clk 0:00:36]}  Qh6+ {[%clk 0:01:15]}
37. Rh3 {[%clk 0:01:01]}  Qg7 {[%clk 0:01:29]} 38. Qc4 {[%clk 0:01:04]}  Bc6 {[%clk 0:01:28]} 39. Rg3 {[%clk 0:00:58]}  Qh6+ {[%clk 0:01:42]}
40. Rh3 {[%clk 0:01:23]}  Qg7 {[%clk 0:01:22]} 41. Rg3 {[%clk 0:01:23]}  Qh6+ {[%clk 0:22:04]} 42. Rh3 {[%clk 0:31:45]}  Qg6 {[%clk 0:19:04]}
43. Rg3 {[%clk 0:31:32]}  Qh5+ {[%clk 0:17:57]} 44. Rh3 {[%clk 0:30:40]}  Qf5 {[%clk 0:17:25]} 45. Rg3 {[%clk 0:22:56]}  Rf8 {[%clk 0:14:18]}
46. Qxc5 {[%clk 0:19:30]}  Qh5+ {[%clk 0:12:00]} 47. Rh3 {[%clk 0:16:52]}  Qg4 {[%clk 0:11:52]} 48. Rg3 {[%clk 0:16:21]}  Qh4+ {[%clk 0:11:46]}
49. Rh3 {[%clk 0:11:53]}  Qf4+ {[%clk 0:11:30]} 50. Rg3 {[%clk 0:12:10]}  Rg8 {[%clk 0:09:12]} 51. Qe3 {[%clk 0:04:06]}  Qh4+ {[%clk 0:08:11]}
52. Kg1 {[%clk 0:03:46]}  Rb8 {[%clk 0:06:37]} 53. Rh3 {[%clk 0:04:10]}  Qg4 {[%clk 0:02:13]} 54. f3 {[%clk 0:04:28]}  Qg7 {[%clk 0:01:16]}
55. Kh2 {[%clk 0:03:10]}  Rg8 {[%clk 0:01:12]} 56. Qf2 {[%clk 0:03:30]}  Qg5 {[%clk 0:01:17]} 57. Qg3 {[%clk 0:02:36]}  Qxg3+ {[%clk 0:00:40]}
58. Rxg3 {[%clk 0:03:00]}  Rxg3 {[%clk 0:00:52]} 59. Kxg3 {[%clk 0:03:26]}  Kg7 {[%clk 0:01:10]} 60. Kf2 {[%clk 0:02:48]}  Kg6 {[%clk 0:01:31]}
61. g4 {[%clk 0:01:29]}  e4 {[%clk 0:00:48]} 62. fxe4 {[%clk 0:00:47]}  Bxe4 {[%clk 0:01:09]} 63. Kg3 {[%clk 0:01:11]}  f5 {[%clk 0:00:37]}
64. gxf5+ {[%clk 0:01:34]}  Bxf5 {[%clk 0:01:02]} 65. Kh4 {[%clk 0:01:51]} 1/2-1/2

[Event "2026 European Womens Championship"]
[Site "Batumi, GE"]
[Date "2026.06.01"]
[Round "7"]
[White "Asatiani, Natali"]
[Black "Giorgadze, Mariam Ere"]
[Result "1-0"]
[Board "126"]
[TimeControl "5400+30"]
[WhiteFideId "13636715"]
[BlackFideId "13636839"]
[WhiteElo "1603"]
[BlackElo "1909"]
[WhiteClock "0:20:30"]
[BlackClock "0:24:01"]
[Variant "Standard"]

1. e4 {[%clk 1:26:43]}  e5 {[%clk 1:30:55]} 2. Nf3 {[%clk 1:27:06]}  Nc6 {[%clk 1:31:21]} 3. d4 {[%clk 1:27:25]}  exd4 {[%clk 1:31:46]}
4. Bc4 {[%clk 1:27:52]}  Nf6 {[%clk 1:32:10]} 5. e5 {[%clk 1:27:56]}  d5 {[%clk 1:32:35]} 6. Bb5 {[%clk 1:28:22]}  Ne4 {[%clk 1:33:01]}
7. Nxd4 {[%clk 1:28:46]}  Bd7 {[%clk 1:33:28]} 8. Bxc6 {[%clk 1:29:10]}  bxc6 {[%clk 1:33:54]} 9. O-O {[%clk 1:29:36]}  Bc5 {[%clk 1:34:20]}
10. f3 {[%clk 1:29:51]}  Ng5 {[%clk 1:34:43]} 11. f4 {[%clk 1:30:16]}  Ne4 {[%clk 1:35:08]} 12. Be3 {[%clk 1:29:58]}  O-O {[%clk 1:35:03]}
13. Nd2 {[%clk 1:30:08]}  Nxd2 {[%clk 1:35:25]} 14. Qxd2 {[%clk 1:30:31]}  Bb6 {[%clk 1:35:31]} 15. c3 {[%clk 1:21:38]}  Qe7 {[%clk 1:31:39]}
16. Rae1 {[%clk 1:17:25]}  c5 {[%clk 1:23:33]} 17. Nb3 {[%clk 1:12:00]}  c4 {[%clk 1:13:50]} 18. Nc1 {[%clk 1:04:40]}  c6 {[%clk 0:57:00]}
19. Bxb6 {[%clk 0:54:59]}  axb6 {[%clk 0:57:18]} 20. f5 {[%clk 0:55:13]}  Qc5+ {[%clk 0:52:10]} 21. Kh1 {[%clk 0:54:31]}  g6 {[%clk 0:49:48]}
22. Qg5 {[%clk 0:37:26]}  Rfe8 {[%clk 0:41:47]} 23. e6 {[%clk 0:29:24]}  fxe6 {[%clk 0:31:25]} 24. fxg6 {[%clk 0:28:44]}  Rf8 {[%clk 0:24:01]}
25. Rf7 {[%clk 0:20:30]} 1-0

[Event "2026 European Womens Championship"]
[Site "Batumi, GE"]
[Date "2026.06.01"]
[Round "7"]
[White "Chighvaria, Ana"]
[Black "Khairova, Evelina"]
[Result "0-1"]
[Board "127"]
[TimeControl "5400+30"]
[WhiteFideId "13628666"]
[BlackFideId "2845768"]
[WhiteElo "1518"]
[BlackElo "1880"]
[WhiteClock "0:33:03"]
[BlackClock "0:04:19"]
[Variant "Standard"]

1. d4 {[%clk 1:30:56]}  Nf6 {[%clk 1:30:56]} 2. Nf3 {[%clk 1:31:18]}  e6 {[%clk 1:31:19]} 3. e3 {[%clk 1:31:41]}  d5 {[%clk 1:30:19]}
4. Bd3 {[%clk 1:32:04]}  b6 {[%clk 1:29:49]} 5. Nbd2 {[%clk 1:32:19]}  Bb7 {[%clk 1:29:41]} 6. O-O {[%clk 1:32:21]}  Nbd7 {[%clk 1:27:48]}
7. b3 {[%clk 1:32:36]}  Bd6 {[%clk 1:23:06]} 8. Bb2 {[%clk 1:32:50]}  O-O {[%clk 1:23:25]} 9. Ne5 {[%clk 1:32:12]}  Ne4 {[%clk 1:21:22]}
10. f4 {[%clk 1:29:03]}  f5 {[%clk 1:04:12]} 11. Rf3 {[%clk 1:25:59]}  Nxe5 {[%clk 0:58:10]} 12. fxe5 {[%clk 1:24:59]}  Bb4 {[%clk 0:54:15]}
13. Bxe4 {[%clk 1:22:54]}  fxe4 {[%clk 0:47:00]} 14. Rh3 {[%clk 1:20:02]}  Bxd2 {[%clk 0:38:40]} 15. Qxd2 {[%clk 1:20:23]}  Ba6 {[%clk 0:38:31]}
16. Rg3 {[%clk 1:08:49]}  Rf5 {[%clk 0:36:15]} 17. h3 {[%clk 1:06:41]}  Qf8 {[%clk 0:33:00]} 18. Qc3 {[%clk 1:04:41]}  c5 {[%clk 0:25:18]}
19. dxc5 {[%clk 1:03:18]}  Rc8 {[%clk 0:20:56]} 20. Qd4 {[%clk 1:00:58]}  Qxc5 {[%clk 0:16:57]} 21. Qa4 {[%clk 0:50:39]}  Qb5 {[%clk 0:14:54]}
22. Qa3 {[%clk 0:48:02]}  Rf7 {[%clk 0:11:16]} 23. Qd6 {[%clk 0:45:12]}  Qc6 {[%clk 0:10:32]} 24. Qa3 {[%clk 0:45:02]}  Be2 {[%clk 0:09:37]}
25. Rc1 {[%clk 0:41:34]}  Qc5 {[%clk 0:07:35]} 26. Qxc5 {[%clk 0:40:21]}  Rxc5 {[%clk 0:07:57]} 27. Bd4 {[%clk 0:38:17]}  Rc8 {[%clk 0:07:20]}
28. c3 {[%clk 0:38:18]}  Rcf8 {[%clk 0:07:13]} 29. Rc2 {[%clk 0:35:26]}  Rf1+ {[%clk 0:07:01]} 30. Kh2 {[%clk 0:35:51]}  R8f2 {[%clk 0:05:40]}
31. h4 {[%clk 0:34:30]}  h5 {[%clk 0:03:59]} 32. a4 {[%clk 0:34:02]}  Bg4 {[%clk 0:03:35]} 33. Rxf2 {[%clk 0:34:22]}  Rxf2 {[%clk 0:04:02]}
34. a5 {[%clk 0:34:30]}  bxa5 {[%clk 0:03:29]} 35. Bxa7 {[%clk 0:34:48]}  Rb2 {[%clk 0:03:55]} 36. Bc5 {[%clk 0:32:51]}  Rxb3 {[%clk 0:04:16]}
37. Bd6 {[%clk 0:32:31]}  a4 {[%clk 0:04:28]} 38. Bb4 {[%clk 0:32:51]}  Rxb4 {[%clk 0:03:52]} 39. cxb4 {[%clk 0:33:03]}  a3 {[%clk 0:04:19]} 0-1